Cogmind - Beta 9.3 @@@ ROGUE MODE // 2019.12.18 @ 20:40:21 // Winter2019/RPGLIKE Player: delet0r Result: Destroyed by as-75515 with Assembled Rifle Performance ------------- Evolutions (1) 500 Regions Visited (3) 600 Robots Destroyed (22) 110 Value Destroyed (417) 417 Prototype IDs (1) 20 Alien Tech Used (0) 0 Bonus (0) 0 TOTAL SCORE: 1647 Bonus ------- None Cogmind --------- Core Integrity 0/600 Matter 131/300 Energy 125/125 System Corruption 0% Temperature Cool (295) Movement Rolling (90) Location -9/Mines Parts ------- > --- POWER (1) -------- Light Ion Engine > --- PROPULSION (2) --- Armored Wheel Armored Wheel > --- UTILITY (3) ------ Sensor Array Signal Interpreter Hardened Light Armor Plating > --- WEAPON (2) ------- Improved Light Cannon Improved Light Cannon > --- INVENTORY (1) ---- (None) Peak State ------------ > --- POWER ------------ Heavy Ion Engine > --- PROPULSION ------- Armored Wheel Armored Wheel > --- UTILITY ---------- Sensor Array Signal Interpreter Hardened Light Armor Plating > --- WEAPON ----------- Improved Light Cannon Improved Light Cannon > --- INVENTORY -------- Armored Wheel [Rating: 15] Favorites ----------- Power Light Ion Engine Engine Light Ion Engine Propulsion Compact Wheel Leg Aluminum Leg Wheel Compact Wheel Utility Tractor Beam Device Tractor Beam Processor Signal Interpreter Protection Hardened Light Armor Plating Weapon Improved Light Cannon Energy Gun Heavy EM Pulse Gun Ballistic Gun Assault Rifle Ballistic Cannon Improved Light Cannon Build | -11 -10 -9 -9 ------- Run | Scr Mat Mat Min Slots Evolved 4 | . 3 1 . Power . | . . . . Propulsion 1 | . 1 . . Utility 2 | . 1 1 . Weapon 1 | . 1 . . Parts Attached 21 | 4 5 12 . Power 5 | 1 1 3 . Engine 5 | 1 1 3 . Core . | . . . . Reactor . | . . . . Propulsion 6 | 1 2 3 . Treads . | . . . . Leg 1 | . 1 . . Wheel 5 | 1 1 3 . Hover . | . . . . Flight . | . . . . Utility 5 | 1 . 4 . Device 3 | 1 . 2 . Storage . | . . . . Processor 1 | . . 1 . Hackware . | . . . . Protection 1 | . . 1 . Artifact . | . . . . Weapon 5 | 1 2 2 . Energy Gun 2 | . 2 . . Energy Cannon . | . . . . Ballistic Gun 1 | 1 . . . Ballistic Cannon 2 | . . 2 . Launcher . | . . . . Special Weapon . | . . . . Impact Weapon . | . . . . Slashing Weapon . | . . . . Piercing Weapon . | . . . . Special Melee Weapon . | . . . . Unidentified Prototypes 1 | . . 1 . Parts Lost . | . . . . Power . | . . . . Propulsion . | . . . . Utility . | . . . . Weapon . | . . . . Highest Loss Streak . | . . . . Average Slot Usage (%) 90 | . 87 92 100 Engine 15 | . 17 12 12 Leg 1 | . 2 . . Wheel 23 | . 22 24 25 Device 16 | . 17 15 12 Processor 3 | . . 8 12 Protection 2 | . . 5 12 Energy Gun 16 | . 26 3 . Ballistic Cannon 9 | . . 22 25 Naked Turns . | . . . . Heaviest Build 22 | 6 8 22 17 Greatest Support 32 | 16 32 32 24 Greatest Overweight (x) 1 | 1 . 1 . Average Overweight (x) . | . . . . Largest Inventory Capacity 1 | . 1 1 1 Average Capacity . | . . 1 1 Most Carried 1 | . 1 1 . Average Carried . | . . . . Final Capacity 1 | . 1 1 1 Final Carried 1 | . 1 . . Class Distribution -------------------- 81% | Mutant 18% | Scavenger-Mutant Dominant Class ---------------- Mutant | -10/Materials Mutant | -9/Materials Mutant | -9/Mines Resources | -11 -10 -9 -9 ----------- Run | Scr Mat Mat Min Matter Collected 413 | 252 50 37 74 Remotely 90 | 10 50 30 . Salvage Created 616 | 60 458 41 57 Parts 43 | 3 23 11 6 Haulers Intercepted . | . . . . Recyclers Shooed 2 | . 2 . . Parts Field Recycled . | . . . . Retrieved Matter . | . . . . Parts Self-Destructed . | . . . . Prevented . | . . . . Kills | -11 -10 -9 -9 ------- Run | Scr Mat Mat Min Combat Hostiles Destroyed 14 | . 7 3 4 Guns 5 | . 5 . . Cannons 7 | . . 3 4 AOE 2 | . 2 . . Classes Destroyed 6 | 1 4 . 1 Worker 1 | . 1 . . Recycler 4 | 1 3 . . Watcher 3 | . 1 2 . Swarmer 6 | . 3 3 . Grunt 7 | . 4 . 3 Assembled 1 | . . . 1 Best Kill Streak 6 | 1 6 3 4 Combat Bots Only 4 | . 3 3 4 Max Kills in Single Turn 2 | 1 2 1 1 Gunslinging . | . . . . Exploded 2 | . 2 . . Melee . | . . . . Uniques/NPCs Destroyed . | . . . . Combat | -11 -10 -9 -9 -------- Run | Scr Mat Mat Min Damage Taken 741 | . 346 156 239 Core 607 | . 297 122 188 Absorbed by Shields . | . . . . Redirected to Core 435 | . 156 106 173 Core Remaining (%) 75 | 100 50 . . Volleys Fired 55 | 4 31 9 11 Largest 2 | 1 2 2 2 Hottest 85 | 20 85 78 78 Shots Fired 97 | 4 53 18 22 Gun 57 | 4 53 . . Cannon 40 | . . 18 22 Launcher . | . . . . Special . | . . . . Kinetic 44 | 4 . 18 22 Thermal 22 | . 22 . . Explosive . | . . . . Electromagnetic 31 | . 31 . . Robot Hit Streak 15 | 4 15 2 5 Robot Miss Streak 5 | . 5 4 2 Penetration Max . | . . . . Secondary Targets . | . . . . Shots Hit Robots 59 | 4 34 8 13 Core Hits 28 | 2 15 5 6 Critical Hits 1 | . . . 1 Critical Kills . | . . . . Critical Parts Destroyed 1 | . . . 1 Melee Attacks . | . . . . Impact . | . . . . Slashing . | . . . . Piercing . | . . . . Sneak Attacks . | . . . . Combat Hostiles . | . . . . Follow-up Attacks . | . . . . Damage Inflicted 1230 | 54 682 168 326 Guns 532 | 54 478 . . Cannons 494 | . . 168 326 Explosions 204 | . 204 . . Melee . | . . . . Ramming . | . . . . Kinetic 548 | 54 . 168 326 Thermal 313 | . 313 . . Explosive . | . . . . Electromagnetic 369 | . 369 . . Impact . | . . . . Slashing . | . . . . Piercing . | . . . . Highest Corruption . | . . . . Average Corruption . | . . . . Corruption Purged . | . . . . Overload Shots . | . . . . Overflow Damage 12 | . 12 . . Projectiles . | . . . . Explosions 12 | . 12 . . Melee . | . . . . Knockbacks 4 | . . . 4 Impact . | . . . . Kinetic 4 | . . . 4 Secondary . | . . . . Self-Inflicted Damage 66 | . 66 . . Shots 2 | . 2 . . Rammed . | . . . . Targets Rammed . | . . . . Kicked . | . . . . Crushed . | . . . . Highest Temperature 295 | . 198 231 295 Average Temperature 90 | . 56 98 182 Received Heat Transfer 183 | . 135 . 48 Siege Activations . | . . . . Robots Corrupted . | . . . . Combat Hostiles . | . . . . Parts Fried 2 | . 2 . . Impact Corruptions . | . . . . Robots Melted . | . . . . Combat Hostiles . | . . . . Parts Melted . | . . . . Heat Transferred 500 | . 500 . . Parts Sabotaged . | . . . . Parts Stolen . | . . . . Parts Stripped . | . . . . Power Chain Reactions 2 | . 2 . . Missiles Intercepted . | . . . . Alert | -11 -10 -9 -9 ------- Run | Scr Mat Mat Min Peak Influence 264 | 5 264 215 153 Average Influence 103 | 1 98 137 141 Maximum Alert Level 1 | . 1 1 . Low Security (%) 88 | 100 84 87 100 Level 1 11 | . 15 12 . Level 2 . | . . . . Level 3 . | . . . . Level 4 . | . . . . Level 5 . | . . . . High Security . | . . . . Max Security . | . . . . Squads Dispatched 1 | . 1 . . Investigation 1 | . 1 . . Extermination . | . . . . Reinforcement . | . . . . Assault . | . . . . Garrison . | . . . . Intercept . | . . . . Construction Impeded . | . . . . Haulers Reinforced . | . . . . Stealth | -11 -10 -9 -9 --------- Run | Scr Mat Mat Min Distress Signals 1 | . 1 . . Communications Jammed . | . . . . Distress Signals . | . . . . Times Spotted 32 | . 12 6 14 Peak Tracking Total 9 | . 3 4 9 Tactical Retreats 4 | . 4 . . Traps | -11 -10 -9 -9 ------- Run | Scr Mat Mat Min Traps Triggered . | . . . . Indirectly . | . . . . Trap Hack Attempts . | . . . . Triggered . | . . . . Disarmed . | . . . . Reprogrammed . | . . . . Reused . | . . . . Traps Extracted . | . . . . Installed . | . . . . Triggered 1 | . 1 . . Machines | -11 -10 -9 -9 ---------- Run | Scr Mat Mat Min Machines Disabled 2 | . 2 . . Max in Single Turn 1 | . 1 . . Machines Sabotaged . | . . . . Garrisons Compromised . | . . . . Overloaded Fab Kills . | . . . . Fab Network Shutdowns . | . . . . Hacking | -11 -10 -9 -9 --------- Run | Scr Mat Mat Min Machines Accessed 5 | . 4 1 . Terminals 5 | . 4 1 . Fabricators . | . . . . Repair Stations . | . . . . Recycling Units . | . . . . Scanalyzers . | . . . . Garrison Access . | . . . . Total Hacks 17 | . 12 5 . Successful 9 | . 7 2 . Failed 8 | . 5 3 . Catastrophic . | . . . . Database Lockouts . | . . . . Manual . | . . . . Terminals 17 | . 12 5 . Fabricators . | . . . . Repair Stations . | . . . . Recycling Units . | . . . . Scanalyzers . | . . . . Garrison Access . | . . . . Terminal Hacks 9 | . 7 2 . Record 2 | . 2 . . Emergency Access Points 1 | . 1 . . Locate Traps 1 | . 1 . . Dispatch Records 1 | . 1 . . Transport Status 1 | . 1 . . Recall Investigation 1 | . . 1 . Hauler Manifests 1 | . 1 . . Registered Prototypes 1 | . . 1 . Fabricator Hacks . | . . . . Repair Station Hacks . | . . . . Recycling Unit Hacks . | . . . . Scanalyzer . | . . . . Garrison Access Hacks . | . . . . Unauthorized Hacks . | . . . . Terminals . | . . . . Fabricators . | . . . . Repair Stations . | . . . . Recycling Units . | . . . . Scanalyzers . | . . . . Garrison Access . | . . . . Data Cores Recovered . | . . . . Used . | . . . . Hacking Detections 5 | . 4 1 . Full Trace Events . | . . . . Feedback Events . | . . . . Feedback Blocked . | . . . . Robot Schematics Acquired . | . . . . Robots Built . | . . . . Matter . | . . . . Time . | . . . . Total Robot Build Rating . | . . . . Part Schematics Acquired . | . . . . Parts Built . | . . . . Matter . | . . . . Time . | . . . . Total Part Build Rating . | . . . . Parts Repaired . | . . . . Time . | . . . . Parts Recycled . | . . . . Recycled Matter . | . . . . Retrieved Matter . | . . . . Retrieved Components . | . . . . Parts Scanalyzed . | . . . . Part Schematics Acquired . | . . . . Parts Damaged . | . . . . Bothacking | -11 -10 -9 -9 ------------ Run | Scr Mat Mat Min Used RIF Installer . | . . . . Robots Hacked . | . . . . Non-combat . | . . . . Combat . | . . . . Robot Hacks Applied . | . . . . Relay Couplers Released . | . . . . Robots Rewired . | . . . . Allies Hacked . | . . . . Hacks Repelled . | . . . . Allies | -11 -10 -9 -9 -------- Run | Scr Mat Mat Min Total Allies . | . . . . Largest Group . | . . . . Highest-Rated Group . | . . . . Highest-Rated Ally . | . . . . Total Orders . | . . . . Ally Attacks . | . . . . Total Damage . | . . . . Kills . | . . . . Allies Corrupted . | . . . . Allies Melted . | . . . . Intel | -11 -10 -9 -9 ------- Run | Scr Mat Mat Min Robot Analysis Total . | . . . . Derelict Logs Recovered . | . . . . Drone Launches . | . . . . Drone Recoveries . | . . . . Exploration | -11 -10 -9 -9 ------------- Run | Scr Mat Mat Min Turns Passed 547 | 55 283 170 39 Spaces Moved 313 | 38 140 129 6 Core 11 | 11 . . . Treads . | . . . . Legs . | . . . . Wheels 302 | 27 140 129 6 Hover . | . . . . Flight . | . . . . Fastest Speed 50 | 50 100 90 90 Average Speed 95 | 93 100 91 90 Slowest Speed 100 | 100 100 100 90 Overloaded Moves . | . . . . Propulsion Burnouts . | . . . . Robots Hopped . | . . . . Cave-ins Triggered . | . . . . Exploration Rate (%) 15 | 4 30 21 7 Regions Visited 3 Branch Regions 1 Pre-discovered Areas . | . . . . Known Exits Taken 1 | . . 1 . Unknown Exits Taken 2 | 1 1 . . Scrap Searched . | . . . . Spaces Dug . | . . . . Terrain Destroyed 5 | . 4 . 1 Melee . | . . . . Projectile 1 | . . . 1 AOE 4 | . 4 . . Actions | -11 -10 -9 -9 --------- Run | Scr Mat Mat Min Total 459 | 51 228 162 18 Wait 60 | 6 51 2 1 Move 310 | 37 139 128 6 Hop . | . . . . Pick Up 1 | . . 1 . Fast Attach 18 | 4 4 10 . Attach 1 | . . 1 . Detach . | . . . . Swap 2 | . 1 1 . Drop 12 | . 2 10 . Fire 55 | 4 31 9 11 Melee . | . . . . Ram . | . . . . Kick . | . . . . Crush . | . . . . Escape Stasis . | . . . . Rewire . | . . . . Trap . | . . . . Miscellaneous . | . . . . Route ------- -11/Scrapyard -10/Materials -9/Materials -9/Mines History --------- Turn | Location | Event 7 | -11/Scrapyard | Discovered new exit (range 16) 56 | -11/Scrapyard | Entered Materials 142 | -10/Materials | Upgraded with Propulsion slot (x1) 142 | -10/Materials | Upgraded with Utility slot (x1) 142 | -10/Materials | Upgraded with Weapon slot (x1) 278 | -10/Materials | Discovered new exit (range 16) 339 | -10/Materials | Entered another Materials area 341 | -9/Materials | Reached level 2 345 | -9/Materials | Upgraded with Utility slot (x1) 462 | -9/Materials | Discovered new exit (range 15) 464 | -9/Materials | Core integrity fell below 50% 506 | -9/Materials | Identified exit to Mines 509 | -9/Materials | Entered Mines 509 | -9/Mines | Reached level 3 510 | -9/Mines | Assembled infested the area 523 | -9/Mines | Core integrity fell below 20% 548 | -9/Mines | Destroyed by as-75515 with Assembled Rifle Last Messages --------------- as-48646 destroyed. as-77836 destroyed. Acquired 42 matter. D-53 Grenadier knocked back. D-53 Grenadier destroyed. as-01203 destroyed. as-58833 destroyed. as-44256 destroyed. as-24936 suffers critical hit. Destroyed Asb. Hover Unit. as-24936 knocked back. The unstable cave ceiling collapses. as-89318 destroyed. as-24936 destroyed. The unstable cave ceiling collapses. K-01 Serf collects debris. D-53 Grenadier destroyed. Acquired 32 matter. as-04424 destroyed. The unstable cave ceiling collapses. Map ----- +----------------------------------------------------+ | ??????????????????????????????????? | | ??????????????????????????????????? | | ??????????????????????????????????? | | ??????????????????????????????????? | | ??????????????????????????????????? | | ??????????????????????????????????? | | ??????????????????????????????????? | | ??????????????????????????????????? | | ??????????????????????????????????? | | ??????????????????????????????????? | | ??????????????????????????????????? | | ??????????????????????????????????? | | ?????????????????????#????????????? | | ?????????????????????# ???????????? | | ?????????????????????# ???????????? | | ?????????????????????# ????????##?? | | ?????????????????????# #??????? ##? | | ????????????????????## #????? #? | | ????????????????????? ????? #? | | ??????????????????????# ####? #?? | | ??????????????????????# % # ## #??? | | ??????????????????????# [= x #??? | | ??????????????????????# *= #??? | | ??????????????????????# =%* #??? | | ???????????????????#### #### #??? | | ???????????????????# @ ##? #??? | | ???????????????????# =%=!#?? #??? | | ??????????????????# ! ? #??? | | ???????????????? ##?#??? | | ?????????????# * #?????? | | ?????????????# ##?????? | | ???????????? #??????? | | ????????????# #??????? | | ?????????????# # #??????? | | ?????????????## ## a# ##??????? | | ??????????????###?# ????????? | | ??????????????????# a????????? | | ??????????????????## ????????? | | ???????????????????#### ;????????? | | ??????????????????????#??#????????? | | ??????????????????????????????????? | | ??????????????????????????????????? | | ??????????????????????????????????? | | ??????????????????????????????????? | | ??????????????????????????????????? | | ??????????????????????????????????? | | ??????????????????????????????????? | | ??????????????????????????????????? | | ??????????????????????????????????? | | ??????????????????????????????????? | +----------------------------------------------------+ Best States ------------- Heat Dissipation 25 Energy Generation 10 Energy Capacity 125 Matter Stores 300 Matter Capacity 300 Sight Range 16 Robot Scan Range 10 Terrain Scan Density 10 Armor Coverage 150 Evasion (%) 42 Item Schematics ----------------- None Robot Schematics ------------------ None Fabricated ------------ Nothing Alien Tech Used ----------------- None Achievements -------------- None Challenges ------------ None RPGLIKE | -11 -10 -9 -9 --------- Run | Scr Mat Mat Min Levels Raised 2 | . . 1 1 XP Earned 6830 | 3000 1035 1945 850 XP Spent 3450 | . 2650 800 . Upgrades 7 | . 6 1 . Propulsion Slot 1 | . 1 . . Utility Slot 2 | . 1 1 . Weapon Slot 1 | . 1 . . Inventory Capacity 1 | . 1 . . Ranged Accuracy 2 | . 2 . . Protomatter Created 140 | . 56 12 72 Protomatter Decayed 47 | . 35 12 . Game ------ Seed ShieldReactiveStabilizer Manual? 0 Play Time 00:17:18 Cumulative 17.2 hours Start 2019.12.18 @ 20:23:13 End 2019.12.18 @ 20:40:21 Sessions 1 Manual Loads 0 Difficulty Rogue Special Mode Winter2019/RPGLIKE Game No. 25 Rogue 25 Adventurer 0 Explorer 0 Win Type - Total 0 Types 0/0/0/0/0/0/0 Lore% 11 Gallery% 23 Achievement% 21 Wizard Run 0 Options --------- ASCII 0 Keyboard 0 Movement Mouse Keybinds 0 Fullscreen 1 Font 18/SmallcapsGlow Map View 76x50 Tactical HUD 0 Map Filters NONE Filters NONE Steam 1 RUN: b53a9a97-a656-47de-be17-57e5402799e9